[Event "ISR-chT 2019"]
[Site "Israel"]
[Date "2019.02.22"]
[Round "7.25"]
[White "Veinberg, Nimrod"]
[Black "Zoler, Dan"]
[Result "1/2-1/2"]
[ECO "D79"]
[WhiteElo "2406"]
[BlackElo "2503"]
[Annotator "ChessBase"]
[PlyCount "153"]
[EventDate "2019.01.04"]
[EventType "team-tourn"]
[EventCountry "ISR"]
[SourceTitle "playchess.com"]
[Source "ChessBase"]
[SourceQuality "1"]
[TimeControl "40/5400+30:1800+30"]

1. d4 {[%emt 0:00:06]} d5 {[%emt 0:00:00]} 2. c4 {[%emt 0:00:26]} c6 {[%emt 0:00:00]} 3. Nf3 {[%emt 0:00:12]} Nf6 {[%emt 0:00:00]} 4. g3 {[%emt 0:00:57]} g6 {[%emt 0:00:21]} 5. Bg2 {[%emt 0:00:42]} Bg7 {[%emt 0:00:04]} 6. cxd5 {[%emt 0:00:54]} cxd5 {[%emt 0:00:55]} 7. Ne5 {[%emt 0:01:03]} O-O {[%emt 0:00:24]} 8. Nc3 {[%emt 0:00:09]} e6 {[%emt 0:00:30]} 9. O-O {[%emt 0:00:31]} Nfd7 {[%emt 0:00:26]} 10. f4 {[%emt 0:01:05]} Nc6 {[%emt 0:01:35]} 11. Be3 {[%emt 0:06:54]} Ne7 {[%emt 0:08:02]} 12. Bf2 {[%emt 0:01:15]} b6 {[%emt 0:04:14]} 13. Qa4 {[%emt 0:15:09]} Nxe5 {[%emt 0:09:13]} 14. dxe5 {[%emt 0:00:48]} Bd7 {[%emt 0:00:29]} 15. Qa3 {[%emt 0:01:02]} Bc6 {[%emt 0:05:00]} 16. Rfd1 {[%emt 0:00:37]} Qc7 {[%emt 0:00:27]} 17. e4 {[%emt 0:05:22]} Rfd8 {[%emt 0:16:15]} 18. exd5 {[%emt 1:01:48]} Nxd5 {[%emt 0:01:28]} 19. Ne4 {[%emt 0:00:00]} Qb7 {[%emt 0:11:38]} 20. Nd6 {[%emt 0:00:00]} Qd7 {[%emt 0:01:20]} 21. Ne4 {[%emt 0:00:00]} Qb7 {[%emt 0:03:39]} 22. Qd3 {[%emt 0:00:00]} Bf8 {[%emt 0:06:35]} 23. Qe2 {[%emt 0:00:00]} Be7 {[%emt 0:04:04]} 24. Rac1 {[%emt 0:00:00]} Rac8 {[%emt 0:06:11]} 25. h4 {[%emt 0:00:00]} Ba4 {[%emt 0:06:33]} 26. Rxc8 {[%emt 0:00:00]} Qxc8 {[%emt 0:00:58]} 27. Rd4 {[%emt 0:00:00]} Bc6 {[%emt 0:00:49]} 28. h5 {[%emt 0:00:00]} Nb4 {[%emt 0:05:54]} 29. a3 {[%emt 0:00:00]} Rxd4 {[%emt 0:01:17]} 30. Bxd4 {[%emt 0:00:00]} Qd8 {[%emt 0:03:13]} 31. Bc3 {[%emt 0:03:04]} Nd5 {[%emt 0:00:10]} 32. Be1 {[%emt 0:00:38]} Kg7 {[%emt 0:00:39]} 33. Bf2 {[%emt 0:00:49]} Qd7 {[%emt 0:00:50]} 34. Qg4 {[%emt 0:00:18]} Qb7 {[%emt 0:01:08]} 35. Nd6 {[%emt 0:00:46]} Qd7 {[%emt 0:02:32]} 36. Bd4 {[%emt 0:00:24]} Nc7 {[%emt 0:00:33]} 37. hxg6 {[%emt 0:01:18]} hxg6 {[%emt 0:00:05]} 38. f5 {[%emt 0:00:52]} Bxg2 {[%emt 0:00:17]} 39. f6+ {[%emt 0:00:14]} Bxf6 {[%emt 0:00:23]} 40. exf6+ {[%emt 0:00:10]} Kg8 {[%emt 0:00:04]} 41. Be5 {[%emt 0:11:09]} Ba8 {[%emt 0:08:23]} 42. Qc4 {[%emt 0:04:42]} b5 {[%emt 0:15:03]} 43. Qc1 {[%emt 0:01:10]} Ne8 {[%emt 0:03:44]} 44. Qc8 {[%emt 0:03:19]} Qxc8 {[%emt 0:03:32]} 45. Nxc8 {[%emt 0:00:03]} a6 {[%emt 0:00:05]} 46. g4 {[%emt 0:05:06]} g5 {[%emt 0:00:02]} 47. Kf2 {[%emt 0:00:08]} Bb7 {[%emt 0:02:19]} 48. Ne7+ {[%emt 0:00:07]} Kf8 {[%emt 0:02:02]} 49. Ke3 {[%emt 0:00:40]} a5 {[%emt 0:00:27]} 50. b4 {[%emt 0:07:21]} axb4 {[%emt 0:00:16]} 51. axb4 {[%emt 0:00:01]} Bg2 {[%emt 0:00:36]} 52. Kd4 {[%emt 0:00:21]} Bf3 {[%emt 0:00:16]} 53. Kc5 {[%emt 0:00:01]} Bxg4 {[%emt 0:00:56]} 54. Kxb5 {[%emt 0:00:03]} Bf3 {[%emt 0:00:29]} 55. Kc5 {[%emt 0:00:14]} g4 {[%emt 0:00:05]} 56. Kd4 {[%emt 0:00:19]} g3 {[%emt 0:00:52]} 57. Ke3 {[%emt 0:00:01]} g2 {[%emt 0:00:17]} 58. Kf2 {[%emt 0:00:05]} Bb7 {[%emt 0:00:48]} 59. b5 {[%emt 0:00:07]} Nxf6 {[%emt 0:00:30]} 60. Bxf6 {[%emt 0:00:07]} Ke8 {[%emt 0:00:19]} 61. Nc6 {[%emt 0:00:38]} Kd7 {[%emt 0:00:05]} 62. Nd8 {[%emt 0:01:49]} Bd5 {[%emt 0:00:55]} 63. Nxf7 {[%emt 0:00:46]} e5 {[%emt 0:00:37]} 64. Nxe5+ {[%emt 0:00:12]} Kc7 {[%emt 0:00:03]} 65. Ng6 {[%emt 0:03:26]} Kb6 {[%emt 0:00:25]} 66. Ne7 {[%emt 0:00:06]} Bb7 {[%emt 0:00:24]} 67. Nf5 {[%emt 0:00:26]} Kxb5 {[%emt 0:00:08]} 68. Nd6+ {[%emt 0:00:06]} Kc6 {[%emt 0:00:05]} 69. Be5 {[%emt 0:00:15]} Ba6 {[%emt 0:00:19]} 70. Kxg2 {[%emt 0:00:08]} Bd3 {[%emt 0:00:09]} 71. Kf3 {[%emt 0:00:09]} Bh7 {[%emt 0:00:15]} 72. Ke3 {[%emt 0:00:22]} Bb1 {[%emt 0:00:10]} 73. Kd4 {[%emt 0:00:04]} Bh7 {[%emt 0:00:12]} 74. Bf4 {[%emt 0:00:06]} Bb1 {[%emt 0:00:13]} 75. Nc4 {[%emt 0:00:06]} Kd7 {[%emt 0:00:18]} 76. Ne5+ {[%emt 0:00:46]} Ke6 {[%emt 0:00:14]} 77. Be3 {[%emt 0:00:08]} 1/2-1/2

[Event "ISR-chT 2019"]
[Site "Israel"]
[Date "2019.02.22"]
[Round "7.27"]
[White "Parkhov, Yair"]
[Black "Caspi, Israel"]
[Result "1/2-1/2"]
[ECO "A81"]
[WhiteElo "2348"]
[BlackElo "2454"]
[Annotator "ChessBase"]
[PlyCount "266"]
[EventDate "2019.01.04"]
[EventType "team-tourn"]
[EventCountry "ISR"]
[SourceTitle "playchess.com"]
[Source "ChessBase"]
[SourceQuality "1"]
[TimeControl "40/5400+30:1800+30"]

1. d4 {[%emt 0:00:00]} f5 {[%emt 0:00:07]} 2. Nf3 {[%emt 0:00:00]} Nf6 {[%emt 0:01:27]} 3. g3 {[%emt 0:00:00]} g6 {[%emt 0:00:05]} 4. Bg2 {[%emt 0:00:00]} Bg7 {[%emt 0:00:05]} 5. O-O {[%emt 0:00:00]} O-O {[%emt 0:00:06]} 6. Nbd2 {[%emt 0:00:00]} c6 {[%emt 0:01:38]} 7. a4 {[%emt 0:00:02]} d6 {[%emt 0:06:03]} 8. c3 {[%emt 0:00:42]} Kh8 {[%emt 0:03:57]} 9. Re1 {[%emt 0:02:13]} Ne4 {[%emt 0:02:03]} 10. Nxe4 {[%emt 0:04:54]} fxe4 {[%emt 0:00:08]} 11. Ng5 {[%emt 0:00:08]} d5 {[%emt 0:00:50]} 12. f3 {[%emt 0:00:23]} h6 {[%emt 0:19:00]} 13. Nh3 {[%emt 0:00:14]} exf3 {[%emt 0:00:43]} 14. exf3 {[%emt 0:00:09]} Na6 {[%emt 0:00:11]} 15. Nf4 {[%emt 0:10:02]} Rf6 {[%emt 0:06:08]} 16. Qe2 {[%emt 0:13:47]} g5 {[%emt 0:04:14]} 17. Nh5 {[%emt 0:00:59]} Re6 {[%emt 0:00:11]} 18. Qf2 {[%emt 0:01:03]} Rxe1+ {[%emt 0:01:49]} 19. Qxe1 {[%emt 0:00:07]} Bf6 {[%emt 0:00:08]} 20. h4 {[%emt 0:19:14]} Nc7 {[%emt 0:02:51]} 21. hxg5 {[%emt 0:01:45]} hxg5 {[%emt 0:01:14]} 22. Bd2 {[%emt 0:07:13]} Qd6 {[%emt 0:16:41]} 23. Qb1 {[%emt 0:07:40]} Bd7 {[%emt 0:04:09]} 24. Qd3 {[%emt 0:05:46]} Rf8 {[%emt 0:09:19]} 25. Nxf6 {[%emt 0:03:02]} exf6 {[%emt 0:01:10]} 26. f4 {[%emt 0:01:10]} Rg8 {[%emt 0:05:05]} 27. Kf2 {[%emt 0:01:42]} Rg7 {[%emt 0:00:11]} 28. Re1 {[%emt 0:07:11]} Ne6 {[%emt 0:03:02]} 29. f5 {[%emt 0:01:14]} Nd8 {[%emt 0:00:52]} 30. g4 {[%emt 0:04:10]} Rh7 {[%emt 0:00:05]} 31. Qg3 {[%emt 0:00:11]} Nf7 {[%emt 0:04:11]} 32. b3 {[%emt 0:01:19]} Kg8 {[%emt 0:00:17]} 33. Bc1 {[%emt 0:00:29]} Rh4 {[%emt 0:01:29]} 34. Qxd6 {[%emt 0:02:54]} Nxd6 {[%emt 0:00:05]} 35. Ba3 {[%emt 0:02:20]} Nc8 {[%emt 0:00:07]} 36. Kg3 {[%emt 0:00:07]} Kf7 {[%emt 0:01:36]} 37. a5 {[%emt 0:02:18]} Rh8 {[%emt 0:00:44]} 38. Kf2 {[%emt 0:00:44]} Rh4 {[%emt 0:00:58]} 39. Kf3 {[%emt 0:00:10]} Rh8 {[%emt 0:00:06]} 40. c4 {[%emt 0:01:42]} dxc4 {[%emt 0:04:01]} 41. bxc4 {[%emt 0:30:10]} Rd8 {[%emt 0:30:34]} 42. Kf2 {[%emt 0:03:02]} b6 {[%emt 0:00:00]} 43. Bb4 {[%emt 0:00:00]} Be8 {[%emt 0:00:00]} 44. Ke3 {[%emt 0:00:00]} Bd7 {[%emt 0:00:00]} 45. Rh1 {[%emt 0:00:00]} Kg7 {[%emt 0:00:00]} 46. Ra1 {[%emt 0:00:00]} Re8+ {[%emt 0:00:00]} 47. Kf2 {[%emt 0:00:00]} Kf7 {[%emt 0:00:00]} 48. axb6 {[%emt 0:00:00]} axb6 {[%emt 0:00:00]} 49. Ra6 {[%emt 0:00:00]} Rd8 {[%emt 0:00:00]} 50. Ke3 {[%emt 0:00:00]} Re8+ {[%emt 0:00:00]} 51. Kd3 {[%emt 0:00:00]} Rh8 {[%emt 0:02:58]} 52. c5 {[%emt 0:00:00]} Rh2 {[%emt 0:00:12]} 53. Be4 {[%emt 0:02:54]} Rh3+ {[%emt 0:01:57]} 54. Kc2 {[%emt 0:01:24]} Re3 {[%emt 0:01:34]} 55. Bd3 {[%emt 0:01:29]} bxc5 {[%emt 0:00:47]} 56. Bxc5 {[%emt 0:00:07]} Rg3 {[%emt 0:02:08]} 57. Bc4+ {[%emt 0:01:02]} Ke8 {[%emt 0:00:04]} 58. Be2 {[%emt 0:00:31]} Re3 {[%emt 0:00:46]} 59. Bc4 {[%emt 0:00:49]} Rg3 {[%emt 0:00:10]} 60. Ra8 {[%emt 0:00:32]} Rxg4 {[%emt 0:00:30]} 61. Ba6 {[%emt 0:00:21]} Bxf5+ {[%emt 0:00:07]} 62. Kc3 {[%emt 0:00:26]} Rf4 {[%emt 0:00:39]} 63. Bxc8 {[%emt 0:00:16]} Bxc8 {[%emt 0:00:07]} 64. Rxc8+ {[%emt 0:00:05]} Kd7 {[%emt 0:00:04]} 65. Rg8 {[%emt 0:00:08]} g4 {[%emt 0:00:28]} 66. Kd3 {[%emt 0:00:32]} f5 {[%emt 0:01:10]} 67. Ke2 {[%emt 0:00:50]} Re4+ {[%emt 0:01:14]} 68. Kf2 {[%emt 0:00:10]} Rf4+ {[%emt 0:00:23]} 69. Kg2 {[%emt 0:00:16]} Rf3 {[%emt 0:00:26]} 70. Rg7+ {[%emt 0:00:20]} Ke6 {[%emt 0:00:19]} 71. Rg6+ {[%emt 0:00:06]} Kd7 {[%emt 0:00:11]} 72. Rd6+ {[%emt 0:00:12]} Kc7 {[%emt 0:00:07]} 73. Rf6 {[%emt 0:00:09]} Kb7 {[%emt 0:00:43]} 74. Rf8 {[%emt 0:01:30]} Rf4 {[%emt 0:01:41]} 75. Re8 {[%emt 0:01:15]} Rf3 {[%emt 0:00:15]} 76. Bd6 {[%emt 0:00:25]} Rd3 {[%emt 0:00:39]} 77. Rb8+ {[%emt 0:00:21]} Ka7 {[%emt 0:00:18]} 78. Rb2 {[%emt 0:00:18]} Ka6 {[%emt 0:00:16]} 79. Be5 {[%emt 0:00:44]} f4 {[%emt 0:00:18]} 80. Rf2 {[%emt 0:00:32]} Kb5 {[%emt 0:00:27]} 81. Rxf4 {[%emt 0:01:40]} c5 {[%emt 0:00:10]} 82. dxc5 {[%emt 0:00:13]} Kxc5 {[%emt 0:00:06]} 83. Rxg4 {[%emt 0:00:11]} Kd5 {[%emt 0:00:21]} 84. Bg3 {[%emt 0:00:10]} Rb3 {[%emt 0:00:27]} 85. Rg5+ {[%emt 0:00:12]} Ke4 {[%emt 0:00:25]} 86. Re5+ {[%emt 0:00:15]} Kd4 {[%emt 0:00:05]} 87. Re8 {[%emt 0:00:04]} Kd5 {[%emt 0:00:07]} 88. Kh3 {[%emt 0:00:05]} Rb4 {[%emt 0:00:21]} 89. Re5+ {[%emt 0:00:19]} Kc6 {[%emt 0:00:36]} 90. Rf5 {[%emt 0:00:07]} Rc4 {[%emt 0:00:26]} 91. Bf4 {[%emt 0:00:17]} Rd4 {[%emt 0:01:18]} 92. Kg4 {[%emt 0:00:07]} Rd5 {[%emt 0:00:21]} 93. Rf8 {[%emt 0:00:12]} Rd7 {[%emt 0:00:26]} 94. Kf5 {[%emt 0:00:11]} Kc5 {[%emt 0:00:58]} 95. Ke6 {[%emt 0:00:58]} Rh7 {[%emt 0:00:41]} 96. Rc8+ {[%emt 0:00:47]} Kd4 {[%emt 0:00:18]} 97. Be5+ {[%emt 0:00:03]} Ke4 {[%emt 0:00:15]} 98. Rc4+ {[%emt 0:00:11]} Kd3 {[%emt 0:00:06]} 99. Ra4 {[%emt 0:00:06]} Rb7 {[%emt 0:00:19]} 100. Kf5 {[%emt 0:02:18]} Rf7+ {[%emt 0:00:25]} 101. Bf6 {[%emt 0:00:07]} Rd7 {[%emt 0:00:54]} 102. Ra3+ {[%emt 0:00:11]} Kc4 {[%emt 0:00:17]} 103. Rc3+ {[%emt 0:00:28]} Kd5 {[%emt 0:00:50]} 104. Rc1 {[%emt 0:00:10]} Rb7 {[%emt 0:01:37]} 105. Rd1+ {[%emt 0:00:08]} Kc4 {[%emt 0:00:09]} 106. Ke4 {[%emt 0:00:08]} Rb4 {[%emt 0:00:55]} 107. Bd4 {[%emt 0:00:09]} Kb5 {[%emt 0:00:30]} 108. Kd5 {[%emt 0:00:08]} Rb3 {[%emt 0:00:24]} 109. Ra1 {[%emt 0:00:30]} Kb4 {[%emt 0:00:45]} 110. Ra8 {[%emt 0:00:10]} Rg3 {[%emt 0:00:43]} 111. Bc5+ {[%emt 0:00:36]} Kb5 {[%emt 0:00:07]} 112. Rb8+ {[%emt 0:00:06]} Ka6 {[%emt 0:00:36]} 113. Kc6 {[%emt 0:00:44]} Rg6+ {[%emt 0:00:13]} 114. Bd6 {[%emt 0:00:05]} Rg7 {[%emt 0:00:40]} 115. Rb3 {[%emt 0:03:40]} Rg5 {[%emt 0:00:17]} 116. Rh3 {[%emt 0:01:57]} Rb5 {[%emt 0:00:37]} 117. Ra3+ {[%emt 0:00:29]} Ra5 {[%emt 0:00:05]} 118. Rb3 {[%emt 0:00:05]} Rg5 {[%emt 0:00:20]} 119. Rb1 {[%emt 0:00:09]} Rh5 {[%emt 0:00:33]} 120. Bf4 {[%emt 0:00:39]} Ka5 {[%emt 0:00:59]} 121. Bd6 {[%emt 0:01:45]} Ka4 {[%emt 0:01:05]} 122. Rb4+ {[%emt 0:00:10]} Ka5 {[%emt 0:00:05]} 123. Rd4 {[%emt 0:00:25]} Rh6 {[%emt 0:00:52]} 124. Re4 {[%emt 0:01:02]} Rg6 {[%emt 0:00:09]} 125. Kc5 {[%emt 0:00:28]} Rg5+ {[%emt 0:00:31]} 126. Be5 {[%emt 0:00:05]} Ka6 {[%emt 0:00:28]} 127. Kc6 {[%emt 0:01:02]} Rg6+ {[%emt 0:00:14]} 128. Bd6 {[%emt 0:00:05]} Ka5 {[%emt 0:00:40]} 129. Re8 {[%emt 0:00:32]} Ka4 {[%emt 0:01:28]} 130. Rb8 {[%emt 0:00:07]} Rh6 {[%emt 0:00:32]} 131. Kd5 {[%emt 0:00:31]} Rh5+ {[%emt 0:00:06]} 132. Be5 {[%emt 0:00:06]} Rh6 {[%emt 0:00:12]} 133. Re8 {[%emt 0:03:07]} Rh3 {[%emt 0:01:48]} 1/2-1/2

[Event "ISR-chT 2019"]
[Site "Israel"]
[Date "2019.02.22"]
[Round "7.28"]
[White "Zifroni, Dov"]
[Black "Galburd, Yan"]
[Result "1/2-1/2"]
[ECO "E04"]
[WhiteElo "2450"]
[BlackElo "2408"]
[Annotator "ChessBase"]
[PlyCount "219"]
[EventDate "2019.01.04"]
[EventType "team-tourn"]
[EventCountry "ISR"]
[SourceTitle "playchess.com"]
[Source "ChessBase"]
[SourceQuality "1"]
[TimeControl "40/5400+30:1800+30"]

1. d4 {[%emt 0:00:00]} Nf6 {[%emt 0:00:00]} 2. c4 {[%emt 0:00:00]} e6 {[%emt 0:00:00]} 3. g3 {[%emt 0:00:00]} d5 {[%emt 0:00:08]} 4. Nf3 {[%emt 0:00:12]} dxc4 {[%emt 0:01:06]} 5. Bg2 {[%emt 0:00:15]} Bb4+ {[%emt 0:00:12]} 6. Bd2 {[%emt 0:00:05]} a5 {[%emt 0:00:06]} 7. Qc2 {[%emt 0:00:30]} c5 {[%emt 0:00:24]} 8. Qxc4 {[%emt 0:09:01]} Bxd2+ {[%emt 0:06:56]} 9. Nbxd2 {[%emt 0:00:08]} cxd4 {[%emt 0:00:17]} 10. Qxd4 {[%emt 0:07:31]} Qe7 {[%emt 0:12:03]} 11. Nc4 {[%emt 0:17:21]} O-O {[%emt 0:05:51]} 12. Qd6 {[%emt 0:02:22]} Qxd6 {[%emt 0:02:43]} 13. Nxd6 {[%emt 0:01:03]} Ra6 {[%emt 0:00:33]} 14. Rd1 {[%emt 0:07:55]} Rd8 {[%emt 0:01:57]} 15. Nxc8 {[%emt 0:01:11]} Rxc8 {[%emt 0:00:09]} 16. Ne5 {[%emt 0:05:55]} Nc6 {[%emt 0:05:18]} 17. Nxc6 {[%emt 0:16:24]} bxc6 {[%emt 0:00:18]} 18. Rd2 {[%emt 0:00:22]} Rb6 {[%emt 0:08:14]} 19. Kd1 {[%emt 0:05:44]} Kf8 {[%emt 0:01:14]} 20. Kc1 {[%emt 0:00:14]} Rcb8 {[%emt 0:09:58]} 21. Rhd1 {[%emt 0:01:59]} Ke7 {[%emt 0:00:22]} 22. Rc2 {[%emt 0:03:31]} Nd5 {[%emt 0:01:13]} 23. a3 {[%emt 0:00:10]} f5 {[%emt 0:09:38]} 24. Rd4 {[%emt 0:06:25]} Kd6 {[%emt 0:01:51]} 25. e4 {[%emt 0:02:29]} fxe4 {[%emt 0:00:33]} 26. Rxe4 {[%emt 0:01:18]} Rf8 {[%emt 0:02:06]} 27. Bf1 {[%emt 0:04:08]} Rb3 {[%emt 0:03:10]} 28. Rec4 {[%emt 0:01:51]} Ne7 {[%emt 0:02:23]} 29. Bg2 {[%emt 0:01:39]} Rb6 {[%emt 0:00:32]} 30. Re4 {[%emt 0:02:38]} Nd5 {[%emt 0:00:28]} 31. Rce2 {[%emt 0:01:09]} Rf6 {[%emt 0:00:19]} 32. Bh3 {[%emt 0:00:41]} Nc7 {[%emt 0:00:46]} 33. f4 {[%emt 0:00:17]} Rb5 {[%emt 0:00:51]} 34. Bg2 {[%emt 0:01:16]} Nd5 {[%emt 0:02:49]} 35. Re5 {[%emt 0:00:22]} h6 {[%emt 0:00:43]} 36. Bh3 {[%emt 0:01:06]} Nc7 {[%emt 0:01:00]} 37. Rd2+ {[%emt 0:00:37]} Nd5 {[%emt 0:01:10]} 38. Rde2 {[%emt 0:00:22]} Nc7 {[%emt 0:00:02]} 39. Bg2 {[%emt 0:00:36]} Nd5 {[%emt 0:01:19]} 40. Rc2 {[%emt 0:00:37]} Rf8 {[%emt 0:08:04]} 41. Re1 {[%emt 0:11:44]} Rf6 {[%emt 0:03:44]} 42. Bf1 {[%emt 0:03:43]} Rb6 {[%emt 0:01:19]} 43. Bc4 {[%emt 0:06:03]} g5 {[%emt 0:07:01]} 44. fxg5 {[%emt 0:00:09]} hxg5 {[%emt 0:00:02]} 45. Rce2 {[%emt 0:00:42]} Rb8 {[%emt 0:02:55]} 46. Re4 {[%emt 0:02:15]} Rh8 {[%emt 0:00:23]} 47. R1e2 {[%emt 0:00:18]} Rhh6 {[%emt 0:04:32]} 48. Kd2 {[%emt 0:01:04]} Rf8 {[%emt 0:03:07]} 49. Rg4 {[%emt 0:03:22]} Rfh8 {[%emt 0:00:48]} 50. Rxg5 {[%emt 0:00:37]} Rxh2 {[%emt 0:00:03]} 51. Rg7 {[%emt 0:01:44]} Rxe2+ {[%emt 0:02:17]} 52. Bxe2 {[%emt 0:00:05]} Rh2 {[%emt 0:00:17]} 53. Ra7 {[%emt 0:01:18]} Rg2 {[%emt 0:01:43]} 54. Rxa5 {[%emt 0:00:08]} Rxg3 {[%emt 0:00:13]} 55. Ra4 {[%emt 0:02:11]} Rg2 {[%emt 0:01:29]} 56. Rg4 {[%emt 0:00:29]} Rh2 {[%emt 0:00:25]} 57. b4 {[%emt 0:01:29]} e5 {[%emt 0:02:13]} 58. Ke1 {[%emt 0:01:02]} Ne3 {[%emt 0:02:46]} 59. Rg6+ {[%emt 0:00:14]} Kd5 {[%emt 0:00:30]} 60. Bf3+ {[%emt 0:01:06]} e4 {[%emt 0:00:01]} 61. Bxe4+ {[%emt 0:00:26]} Kxe4 {[%emt 0:00:01]} 62. Rxc6 {[%emt 0:00:06]} Nc2+ {[%emt 0:00:41]} 63. Kf1 {[%emt 0:01:14]} Nxa3 {[%emt 0:00:02]} 64. Re6+ {[%emt 0:00:13]} Kd3 {[%emt 0:00:35]} 65. Rf6 {[%emt 0:00:22]} Kc3 {[%emt 0:01:19]} 66. Rf2 {[%emt 0:00:07]} Rh4 {[%emt 0:00:18]} 67. Kg2 {[%emt 0:00:12]} Kxb4 {[%emt 0:00:35]} 68. Kg3 {[%emt 0:00:03]} Rh8 {[%emt 0:00:07]} 69. Rd2 {[%emt 0:00:16]} Kc3 {[%emt 0:00:03]} 70. Rd7 {[%emt 0:00:05]} Rf8 {[%emt 0:00:09]} 71. Rd6 {[%emt 0:00:05]} Nc2 {[%emt 0:00:09]} 72. Rd7 {[%emt 0:00:04]} Nd4 {[%emt 0:00:09]} 73. Kg4 {[%emt 0:00:28]} Kd3 {[%emt 0:00:07]} 74. Re7 {[%emt 0:00:16]} Nf3 {[%emt 0:01:26]} 75. Re6 {[%emt 0:00:28]} Kd4 {[%emt 0:00:12]} 76. Re2 {[%emt 0:01:06]} Ne5+ {[%emt 0:00:33]} 77. Kg5 {[%emt 0:00:19]} Kd5 {[%emt 0:00:31]} 78. Ra2 {[%emt 0:00:14]} Nf3+ {[%emt 0:00:26]} 79. Kg4 {[%emt 0:00:10]} Nd4 {[%emt 0:00:19]} 80. Ra7 {[%emt 0:00:53]} Nc6 {[%emt 0:00:23]} 81. Ra4 {[%emt 0:00:15]} Ke5 {[%emt 0:00:19]} 82. Kg3 {[%emt 0:00:23]} Nd4 {[%emt 0:00:17]} 83. Ra7 {[%emt 0:00:16]} Rf3+ {[%emt 0:00:21]} 84. Kg2 {[%emt 0:00:16]} Rb3 {[%emt 0:00:59]} 85. Ra8 {[%emt 0:01:04]} Kf4 {[%emt 0:00:33]} 86. Rf8+ {[%emt 0:01:12]} Nf5 {[%emt 0:00:09]} 87. Kf2 {[%emt 0:00:52]} Rb2+ {[%emt 0:00:37]} 88. Ke1 {[%emt 0:01:17]} Ke3 {[%emt 0:01:09]} 89. Re8+ {[%emt 0:00:10]} Kd3 {[%emt 0:00:04]} 90. Rd8+ {[%emt 0:00:30]} Nd4 {[%emt 0:00:01]} 91. Kf1 {[%emt 0:00:31]} Ra2 {[%emt 0:04:47]} 92. Re8 {[%emt 0:00:59]} Nf5 {[%emt 0:00:30]} 93. Rd8+ {[%emt 0:01:06]} Ke3 {[%emt 0:00:01]} 94. Re8+ {[%emt 0:00:10]} Kf3 {[%emt 0:00:07]} 95. Ke1 {[%emt 0:00:16]} Nd6 {[%emt 0:01:04]} 96. Rf8+ {[%emt 0:00:39]} Ke3 {[%emt 0:00:07]} 97. Kd1 {[%emt 0:00:17]} Kd3 {[%emt 0:00:50]} 98. Rf3+ {[%emt 0:00:08]} Kd4 {[%emt 0:00:24]} 99. Rf8 {[%emt 0:00:15]} Ke3 {[%emt 0:01:36]} 100. Rd8 {[%emt 0:00:51]} Nf5 {[%emt 0:00:24]} 101. Re8+ {[%emt 0:00:28]} Kd3 {[%emt 0:00:01]} 102. Ke1 {[%emt 0:00:22]} Rh2 {[%emt 0:06:20]} 103. Rd8+ {[%emt 0:00:40]} Nd4 {[%emt 0:00:18]} 104. Re8 {[%emt 0:00:17]} Nc2+ {[%emt 0:01:26]} 105. Kf1 {[%emt 0:00:23]} Ne3+ {[%emt 0:00:11]} 106. Kg1 {[%emt 0:00:03]} Rg2+ {[%emt 0:01:17]} 107. Kh1 {[%emt 0:00:01]} Rg7 {[%emt 0:00:49]} 108. Kh2 {[%emt 0:00:34]} Ke2 {[%emt 0:00:19]} 109. Kh3 {[%emt 0:00:28]} Kf3 {[%emt 0:00:39]} 110. Rf8+ {[%emt 0:00:04]} 1/2-1/2

[Event "ISR-chT 2019"]
[Site "Israel"]
[Date "2019.02.22"]
[Round "7.31"]
[White "Efimenko, Zahar"]
[Black "Sivuk, Vitaly"]
[Result "1-0"]
[ECO "B51"]
[WhiteElo "2635"]
[BlackElo "2519"]
[Annotator "ChessBase"]
[PlyCount "73"]
[EventDate "2019.01.04"]
[EventType "team-tourn"]
[EventCountry "ISR"]
[SourceTitle "playchess.com"]
[Source "ChessBase"]
[SourceQuality "1"]
[TimeControl "40/5400+30:1800+30"]

1. e4 {[%emt 0:00:15]} c5 {[%emt 0:00:00]} 2. Nf3 {[%emt 0:00:17]} d6 {[%emt 0:00:00]} 3. Bb5+ {[%emt 0:02:29]} Nd7 {[%emt 0:00:27]} 4. O-O {[%emt 0:00:31]} a6 {[%emt 0:00:08]} 5. Bd3 {[%emt 0:00:19]} Ngf6 {[%emt 0:00:12]} 6. Re1 {[%emt 0:00:45]} b5 {[%emt 0:04:29]} 7. c4 {[%emt 0:01:04]} b4 {[%emt 0:03:11]} 8. a3 {[%emt 0:01:38]} e5 {[%emt 0:00:09]} 9. axb4 {[%emt 0:03:08]} cxb4 {[%emt 0:00:05]} 10. Bc2 {[%emt 0:00:14]} Be7 {[%emt 0:00:22]} 11. d4 {[%emt 0:01:20]} Qc7 {[%emt 0:00:40]} 12. b3 {[%emt 0:05:15]} O-O {[%emt 0:00:43]} 13. Nbd2 {[%emt 0:00:48]} Bb7 {[%emt 0:01:22]} 14. Bb2 {[%emt 0:01:11]} Rfe8 {[%emt 0:00:51]} 15. h3 {[%emt 0:05:00]} Bf8 {[%emt 0:03:21]} 16. Rc1 {[%emt 0:05:38]} Rad8 {[%emt 0:08:16]} 17. c5 {[%emt 0:11:25]} dxc5 {[%emt 0:13:56]} 18. dxe5 {[%emt 0:01:45]} Nh5 {[%emt 0:00:06]} 19. Qe2 {[%emt 0:04:41]} Nf4 {[%emt 0:08:07]} 20. Qe3 {[%emt 0:00:41]} Ng6 {[%emt 0:01:05]} 21. Nc4 {[%emt 0:01:50]} f6 {[%emt 0:04:54]} 22. exf6 {[%emt 0:07:06]} Nxf6 {[%emt 0:00:22]} 23. Bxf6 {[%emt 0:02:19]} gxf6 {[%emt 0:00:06]} 24. e5 {[%emt 0:02:07]} fxe5 {[%emt 0:12:46]} 25. Bxg6 {[%emt 0:02:39]} hxg6 {[%emt 0:00:07]} 26. Nfxe5 {[%emt 0:01:34]} Re6 {[%emt 0:06:36]} 27. Qg3 {[%emt 0:02:55]} Rd4 {[%emt 0:16:31]} 28. Rcd1 {[%emt 0:10:03]} Qd8 {[%emt 0:02:38]} 29. Rxd4 {[%emt 0:02:33]} Qxd4 {[%emt 0:00:26]} 30. Re3 {[%emt 0:01:27]} Bd6 {[%emt 0:10:33]} 31. Nxd6 {[%emt 0:05:08]} Qxd6 {[%emt 0:00:06]} 32. f4 {[%emt 0:01:56]} Rf6 {[%emt 0:01:53]} 33. Rd3 {[%emt 0:02:18]} Bd5 {[%emt 0:00:53]} 34. Qg5 {[%emt 0:03:01]} Kg7 {[%emt 0:01:04]} 35. Nc4 {[%emt 0:02:35]} Qxf4 {[%emt 0:00:33]} 36. Qxf4 {[%emt 0:00:25]} Rxf4 {[%emt 0:00:06]} 37. Rxd5 {[%emt 0:00:03]} 1-0